[Event "Khanty-Mansiysk FIDE GP (Women)"]
[Site "Khanty-Mansiysk"]
[Date "2014.04.12"]
[Round "4"]
[White "Stefanova, Antoaneta"]
[Black "Girya, Olga"]
[Result "1/2-1/2"]
[ECO "D23"]
[WhiteElo "2489"]
[BlackElo "2450"]
[Annotator "ChessBase Website"]
[PlyCount "151"]
[EventDate "2014.04.09"]
[EventType "tourn"]
[EventRounds "11"]
[EventCountry "RUS"]
[EventCategory "10"]
[SourceTitle "CBM 160"]
[Source "ChessBase"]
[SourceDate "2014.05.15"]
[SourceVersion "1"]
[SourceVersionDate "2014.05.15"]
[SourceQuality "1"]
[TimeControl "40/5400+30:1800+30"]
[WhiteClock "1:30:00"]
[BlackClock "1:30:00"]

1. d4 {[%emt 0:00:00]} d5 {[%emt 0:00:00]} 2. c4 {[%emt 0:00:00]} c6 {[%emt 0:
00:00]} 3. Nf3 {[%emt 0:00:00]} Nf6 {[%emt 0:00:00]} 4. Qc2 {[%emt 0:00:00]}
dxc4 {[%emt 0:00:34]} 5. Qxc4 {[%emt 0:00:05]} Bg4 {[%emt 0:05:13]} 6. Nbd2 {
[%emt 0:01:24]} Nbd7 {[%emt 0:00:32]} 7. g3 {[%emt 0:04:58]} e6 {[%emt 0:00:33]
} 8. Bg2 {[%emt 0:01:06]} Be7 {[%emt 0:00:32]} 9. O-O {[%emt 0:03:25]} (9. Ne5
Bh5 10. Nxd7 Nxd7 11. O-O O-O 12. Nb3 a5 13. a4 Bb4 14. e4 e5 15. Be3 exd4 16.
Bxd4 Kh8 17. e5 Re8 18. f4 f6 19. exf6 Nxf6 20. Bf3 Bxf3 21. Rxf3 Re4 22. Re3
Rxe3 23. Bxe3 Qe8 24. Bb6 Qh5 25. Bd4 Re8 26. Rf1 Ng4 27. Qc2 c5 28. Nxc5 Rc8
29. Rd1 Bxc5 30. Bxc5 h6 31. Kh1 {0-1 (31) Mamedyarov,S (2757)-Anand,V (2770)
Khanty-Mansiysk 2014}) 9... O-O {[%emt 0:01:34]} 10. Re1 {[%emt 0:08:30]} Rc8 {
[%emt 0:06:15]} 11. Qb3 {[%emt 0:16:32]} b5 {[%emt 0:13:06]} 12. h3 $146 {
[%emt 0:15:59]} (12. Ne5 Nxe5 13. dxe5 Nd7 14. h3 Bh5 15. g4 Bg6 16. f4 a5 17.
Kh1 Bb4 18. Rf1 Nb6 {1/2-1/2 (18) Malakhatko,V (2543)-Milov,L (2510) Belgium
2012}) 12... Bh5 {[%emt 0:01:01]} 13. e4 {[%emt 0:08:18]} Qb6 {[%emt 0:03:59]}
14. a4 {[%emt 0:03:59]} a6 {[%emt 0:00:24]} 15. Bf1 {[%emt 0:00:21]} Rb8 {
[%emt 0:03:22]} 16. g4 {[%emt 0:11:46]} Bg6 {[%emt 0:00:18]} 17. Ne5 {[%emt 0:
00:08]} Nxe5 {[%emt 0:07:30]} 18. dxe5 {[%emt 0:00:04]} Nd7 {[%emt 0:00:06]}
19. Qg3 {[%emt 0:00:36]} f6 {[%emt 0:04:22]} 20. Nf3 {[%emt 0:06:16]} Bc5 {
[%emt 0:15:15]} 21. Bd3 {[%emt 0:12:02]} Nxe5 {[%emt 0:02:27]} 22. Nxe5 {
[%emt 0:00:06]} fxe5 {[%emt 0:00:04]} 23. Be3 {[%emt 0:00:05]} Bd4 {[%emt 0:04:
17]} 24. b4 {[%emt 0:00:36]} Rbd8 {[%emt 0:03:52]} 25. a5 {[%emt 0:01:53]} Qc7
{[%emt 0:01:08]} 26. Rac1 {[%emt 0:00:16]} Bxe3 {[%emt 0:00:53]} 27. Qxe3 {
[%emt 0:01:10]} Rd4 {[%emt 0:00:31]} 28. Rc3 {[%emt 0:01:55]} Qd6 {[%emt 0:02:
55]} 29. Rec1 {[%emt 0:00:08][%csl Rd3,Gd4] Stefanova was certainly lost in
the middlegame, where she had simply way too many weaknesses and she was down
a pawn. But, somehow, Girya exchanged in to the endgame too early and she made
conversion very complicated, to the point where she lost her way and let the
Bulgarian player escape with half a point.} Be8 {[%emt 0:07:26]} 30. Kg2 {
[%emt 0:00:04]} Qxb4 {[%emt 0:02:10]} 31. Rc5 {[%emt 0:00:42]} Qxa5 {[%emt 0:
01:15]} 32. Rxe5 {[%emt 0:00:32]} Qd8 {[%emt 0:00:14]} 33. Be2 {[%emt 0:01:03]}
Rd6 {[%emt 0:01:57]} 34. g5 {[%emt 0:00:22]} a5 {[%emt 0:02:24]} 35. Bg4 {
[%emt 0:01:01]} Bf7 {[%emt 0:00:18]} 36. h4 {[%emt 0:00:42]} Rd3 {[%emt 0:04:
01]} 37. Qc5 {[%emt 0:00:47]} Rd2 {[%emt 0:01:15]} 38. Qe3 {[%emt 0:00:33]} Rd3
{[%emt 0:02:50]} 39. Qc5 {[%emt 0:00:06]} Qd6 {[%emt 0:03:52]} 40. h5 {[%emt 0:
00:00]} Qxc5 {[%emt 0:00:00]} 41. Rexc5 {[%emt 0:03:01]} Rd6 {[%emt 0:12:29]}
42. e5 {[%emt 0:20:57]} Rd5 {[%emt 0:02:15]} 43. Rxd5 {[%emt 0:00:27]} cxd5 {
[%emt 0:00:14]} 44. Rc7 {[%emt 0:01:14]} b4 {[%emt 0:05:03]} 45. Rb7 {[%emt 0:
01:29]} Ra8 {[%emt 0:01:42]} 46. g6 {[%emt 0:01:10]} hxg6 {[%emt 0:00:05]} 47.
hxg6 {[%emt 0:00:03]} Bxg6 {[%emt 0:00:04]} 48. Bxe6+ {[%emt 0:00:05]} Kf8 {
[%emt 0:00:03]} 49. Bxd5 {[%emt 0:00:26]} Rd8 {[%emt 0:01:53]} 50. Bf3 {
[%emt 0:00:20]} Rd4 {[%emt 0:04:36]} 51. Kg3 {[%emt 0:02:28]} Be4 {[%emt 0:03:
35]} 52. Bxe4 {[%emt 0:00:19]} Rxe4 {[%emt 0:00:01]} 53. f4 {[%emt 0:00:36]} a4
{[%emt 0:01:12]} 54. Kg4 {[%emt 0:02:04]} a3 {[%emt 0:00:32]} 55. Ra7 {[%emt 0:
01:06]} Re2 {[%emt 0:00:36]} 56. Kf3 {[%emt 0:01:06]} Rc2 {[%emt 0:00:27]} 57.
f5 {[%emt 0:00:53]} a2 {[%emt 0:00:31]} 58. Ra8+ {[%emt 0:00:22]} Ke7 {[%emt 0:
03:43]} 59. Ra7+ {[%emt 0:00:05]} Kd8 {[%emt 0:00:43]} 60. Ra8+ {[%emt 0:00:07]
} Kc7 {[%emt 0:00:15]} 61. f6 {[%emt 0:01:28]} gxf6 {[%emt 0:00:36]} 62. exf6 {
[%emt 0:00:01]} Rc3+ {[%emt 0:00:44]} 63. Ke2 {[%emt 0:01:28]} Ra3 {[%emt 0:00:
59]} 64. Rxa3 {[%emt 0:00:39]} bxa3 {[%emt 0:00:01]} 65. f7 {[%emt 0:00:05]}
a1=Q {[%emt 0:00:04]} 66. f8=Q {[%emt 0:00:05]} Qb2+ {[%emt 0:00:45]} 67. Kd3 {
[%emt 0:00:19]} Qb3+ {[%emt 0:00:29]} 68. Kd2 {[%emt 0:01:05]} Qb2+ {[%emt 0:
00:15]} 69. Kd3 {[%emt 0:00:03]} Qb1+ {[%emt 0:01:04]} 70. Kd2 {[%emt 0:00:15]}
Qa2+ {[%emt 0:00:25]} 71. Kc3 {[%emt 0:01:21]} Qa1+ {[%emt 0:00:14]} 72. Kc2 {
[%emt 0:00:30]} a2 {[%emt 0:00:22]} 73. Qc5+ {[%emt 0:00:55]} Kd7 {[%emt 0:00:
06]} 74. Qb5+ {[%emt 0:00:46]} Ke6 {[%emt 0:00:09]} 75. Qb2 {[%emt 0:00:24]}
Qxb2+ {[%emt 0:00:06]} 76. Kxb2 {[%emt 0:00:05]} 1/2-1/2

[Event "EU-ch 12th"]
[Site "Aix les Bains"]
[Date "2011.03.22"]
[Round "1"]
[White "Akopian, Vladimir Eduardovic"]
[Black "Zarkua, Davit"]
[Result "1/2-1/2"]
[ECO "D23"]
[WhiteElo "2675"]
[BlackElo "2397"]
[Annotator "Marchand,A/Primel,D"]
[PlyCount "54"]
[EventDate "2011.03.22"]
[EventType "swiss"]
[EventRounds "11"]
[EventCountry "FRA"]
[SourceTitle "CBM 142 Extra"]
[Source "ChessBase"]
[SourceDate "2011.06.27"]
[SourceVersion "1"]
[SourceVersionDate "2011.06.27"]
[SourceQuality "1"]
[TimeControl "40/5400+30:1800+30"]

1. d4 d5 2. c4 dxc4 3. Nf3 Nf6 4. Qa4+ (4. e3 {La grande ligne}) (4. Nc3) 4...
c6 {Une ligne solide} (4... Nbd7 5. Nc3 e6 6. e4 c5 7. d5 $1 exd5 8. e5 b5 9.
Qxb5 Rb8 10. Qa4 d4 11. exf6 dxc3 12. Bxc4 Rb4 13. Qc2 (13. Qd1 $1 {Une
amélioration du hongrois Negyeszy publiée en 1959}) 13... Nxf6 {Miles,A (2595)
-Karpov,A (2730) Biel 1990 (8) 1/2}) 5. Qxc4 Bf5 (5... b5 {L'alternative} 6.
Qc2 (6. Qd3 {[%cal Ge2e4]}) 6... Bb7 7. e4 e6 8. Bg5 (8. Bd3)) (5... Bg4 6.
Nbd2 (6. Ne5 $6 Be6 7. Qd3 Nbd7 $11 8. Nxd7 Bxd7 9. Nc3 Qb6 10. Bd2 e5 {
Pytlakowski,A-Smyslov,V (2620) Helsinki ol (Men) prel-C 1952 (3) 0-1}) 6...
Nbd7 7. g3) 6. g3 e6 7. Bg2 Nbd7 8. Nc3 (8. O-O) 8... Be7 9. O-O O-O 10. e3 {
[%csl Rc1]} (10. Re1 {[%cal Ge2e4] Plus actif} Ne4 11. Qb3 Qb6 12. Nh4 $1 Bxh4
13. gxh4 Ndf6 14. f3 Nxc3 15. bxc3 Qc7 {[%cal Ge6e5]} 16. e4 Bg6 17. Be3 Nh5 {
[%csl Gf4]} 18. c4 b6 {Spirin,O (2468)-Rasmussen,A (2510) Gothenburg Manhem-A
2010 (2) 1/2} (18... f5 $5 19. e5 {[%csl Re6,Rg6][%cal Gf3f4]} f4 20. Bf2 Rad8
21. Bh3 Bf5)) (10. Qb3) (10. Bg5 h6 (10... Ne4) 11. Bxf6) 10... Re8 {[%cal
Ge6e5,Ge7f8] Un coup trés rare et un peu passif} (10... b5 11. Qe2 (11. Qxc6)
11... b4 (11... Ne4)) (10... Ne4 {La grande ligne mais c'est probablement une
simple interversion de coups} 11. Rd1 Qc7 12. Ne1 {[%cal Gc3e4]} Nxc3 13. bxc3
e5 14. Qe2 $14 {[%cal Ge3e4];Vitiugov,N (2733)-Negi,P (2642) WchT 8th Ningbo
2011 (9) 1/2}) 11. Qe2 {[%cal Ge3e4]} (11. Nh4 $5) (11. Rd1) 11... Ne4 (11...
Bb4 12. a3 Bxc3 13. bxc3 e5 $1 {Braga,F (2465)-Nguyen Anh Dung (2567) Calvia
ol (Men) 2004 (6) 0-1}) 12. Ne1 $146 {[%cal Gf2f3]} ({RR} 12. Nd2 Nxd2 13. Bxd2
e5 14. d5 cxd5 15. Nxd5 e4 16. Bc3 Nf6 17. Nxe7+ Qxe7 18. Qb5 Bg4 19. Rfc1 Rad8
20. Qg5 h6 21. Qf4 Be2 22. Bxf6 Qxf6 23. Qxf6 gxf6 24. Rc2 Bd3 25. Rc7 Ba6 26.
Bf1 Rc8 {Zpevak,P (2349)-Krejci,J (2043)/Czechia 2004/EXT 2007/1-0 (53)}) 12...
Nxc3 13. bxc3 e5 $1 14. e4 {[%csl Gd4,Ge4]} Be6 15. f4 $5 (15. Nc2 $5 {[%cal
Gc2e3,Gd4d5]}) (15. Nd3 Bf6) 15... exf4 16. Bxf4 (16. gxf4 {[%cal Gf4f5]} f5)
16... Qa5 $132 17. Qc2 (17. c4 Qa6 $1 {[%csl Re2]}) 17... Nb6 {[%csl Gc4,Gd5]}
18. Nd3 Nc4 {[%csl Gc4]} 19. Rf2 Na3 $36 20. Qc1 Rad8 21. Bd2 Nc4 22. Nf4 Nxd2
23. Nxe6 fxe6 24. Qxd2 Bg5 (24... c5 {[%cal Gd8d2]}) 25. Qd3 c5 $1 26. Raf1
cxd4 {La pression sur le P"d4" va forcer les Blancs а pousser d4d5 et la nulle
est quasiment inévitable.} 27. cxd4 Qb4 {[%csl Rd4]} 1/2-1/2